fUSD/lending_fUSD_20260502
["ID","MTS","AMOUNT","RATE_DAILY","PERIOD"]
[421442871,1777659135000,-500.0,9.578e-05,2]
[421442853,1777659135000,-500.0,9.578e-05,2]
[421442855,1777659135000,-282.41652562,9.578e-05,2]
[421442857,1777659135000,-500.0,9.578e-05,2]
[421442856,1777659135000,-500.0,9.578e-05,2]
[421442858,1777659135000,-500.0,9.578e-05,2]
[421442859,1777659135000,-500.0,9.578e-05,2]
[421442861,1777659135000,-500.0,9.578e-05,2]
[421442863,1777659135000,-325.87688181,9.578e-05,2]
[421442862,1777659135000,-500.0,9.578e-05,2]
[421442865,1777659135000,-500.0,9.578e-05,2]
[421442864,1777659135000,-500.0,9.578e-05,2]
[421442860,1777659135000,-500.0,9.578e-05,2]
[421442866,1777659135000,-500.0,9.578e-05,2]
[421442870,1777659135000,-500.0,9.578e-05,2]
[421442854,1777659135000,-500.0,9.578e-05,2]
[421442900,1777659135000,-500.0,0.0001,2]
[421442898,1777659135000,-500.0,0.0001,2]
[421442903,1777659135000,-151.0,0.0001,2]
[421442936,1777659135000,-151.0,0.0001,2]
[421442939,1777659135000,-1117.0,0.00010067,2]
[421442941,1777659135000,-1344.0,0.00010186,2]
[421442937,1777659135000,-151.0,0.0001,2]
[421442940,1777659135000,-14566.67551539,0.00010133,2]
[421442946,1777659135000,-255.0,0.00010535,2]
[421442945,1777659135000,-188.98,0.00010411,2]
[421442942,1777659135000,-2000.0,0.00010321,2]
[421442944,1777659135000,-2106.15,0.00010409,2]
[421442943,1777659135000,-205.9,0.000104,2]
[421442947,1777659135000,-208.48,0.00010539,2]
[421442950,1777659135000,-1117.0,0.0001057,2]
[421442952,1777659135000,-500.0,0.00010573,2]
[421442935,1777659135000,-151.0,0.0001,2]
[421442948,1777659135000,-470.3795819,0.00010569,2]
[421442953,1777659135000,-500.0,0.00010573,2]
[421442951,1777659135000,-503.11588169,0.00010573,2]
[421442954,1777659135000,-151.0,0.00010586,2]
[421442957,1777659135000,-250.0,0.00010586,2]
[421442956,1777659135000,-151.0,0.00010586,2]
[421442959,1777659135000,-1156.8092473,0.00010589,2]
[421442958,1777659135000,-796634.65842056,0.00010589,2]
[421442955,1777659135000,-151.0,0.00010586,2]
[421442960,1777659135000,-1606.89640433,0.00010589,2]
[421442962,1777659135000,-353.32,0.00010589,2]
[421442961,1777659135000,-290.05642929,0.00010589,2]
[421442963,1777659135000,-2187.89052827,0.00010589,2]
[421442901,1777659135000,-151.0,0.0001,2]
[421442949,1777659135000,-840.89041704,0.00010569,2]
[421442930,1777659135000,-151.0,0.0001,2]
[421442938,1777659135000,-151.0,0.0001,2]
[421442934,1777659135000,-151.0,0.0001,2]
[421442904,1777659135000,-500.0,0.0001,2]
[421442905,1777659135000,-151.0,0.0001,2]
[421442909,1777659135000,-151.0,0.0001,2]
[421442907,1777659135000,-151.0,0.0001,2]
[421442906,1777659135000,-500.0,0.0001,2]
[421442908,1777659135000,-500.0,0.0001,2]
[421442910,1777659135000,-500.0,0.0001,2]
[421442913,1777659135000,-500.0,0.0001,2]
[421442914,1777659135000,-151.0,0.0001,2]
[421442933,1777659135000,-151.0,0.0001,2]
[421442915,1777659135000,-500.0,0.0001,2]
[421442911,1777659135000,-151.0,0.0001,2]
[421442916,1777659135000,-151.0,0.0001,2]
[421442919,1777659135000,-500.0,0.0001,2]
[421442912,1777659135000,-151.0,0.0001,2]
[421442918,1777659135000,-151.0,0.0001,2]
[421442931,1777659135000,-151.0,0.0001,2]
[421442921,1777659135000,-151.0,0.0001,2]
[421442929,1777659135000,-151.0,0.0001,2]
[421442926,1777659135000,-151.0,0.0001,2]
[421442928,1777659135000,-151.0,0.0001,2]
[421442923,1777659135000,-151.0,0.0001,2]
[421442932,1777659135000,-151.0,0.0001,2]
[421442924,1777659135000,-500.0,0.0001,2]
[421442925,1777659135000,-151.0,0.0001,2]
[421442922,1777659135000,-500.0,0.0001,2]
[421442917,1777659135000,-500.0,0.0001,2]
[421442920,1777659135000,-500.0,0.0001,2]
[421442927,1777659135000,-151.0,0.0001,2]
[421442972,1777659136000,-156704.31137627,0.00010589,2]
[421442971,1777659136000,-557.87133531,0.00010589,2]
[421442970,1777659136000,-380.52932165,0.00010589,2]
[421442968,1777659136000,-48993.48432967,0.00010589,2]
[421442966,1777659136000,-1028.60823168,0.00010589,2]
[421442967,1777659136000,-36590.52591381,0.00010589,2]
[421442965,1777659136000,-259968.27762699,0.00010589,2]
[421442964,1777659136000,-38629.29792388,0.00010589,2]
[421442973,1777659136000,-669.60084203,0.00010589,2]
[421442969,1777659136000,-829.67010334,0.00010589,2]
[421442975,1777659136000,-1153.7396,0.00010589,2]
[421442976,1777659136000,-1286.26560742,0.00010589,2]
[421442985,1777659136000,-150.0,0.00010775,2]
[421442978,1777659136000,-37537.84311933,0.00010589,2]
[421442977,1777659136000,-412.52173454,0.00010589,2]
[421442979,1777659136000,-434.753083,0.00010589,2]
[421442981,1777659136000,-2106.15,0.00010669,2]
[421442980,1777659136000,-110393.06882133,0.00010589,2]
[421442982,1777659136000,-244.85401801,0.00010775,2]
[421442983,1777659136000,-150.0,0.00010775,2]
[421442974,1777659136000,-2200.0,0.00010589,2]
[421442986,1777659136000,-150.0,0.00010775,2]
[421442984,1777659136000,-150.0,0.00010775,2]
[421443023,1777659137000,-4784.35,0.00011281,2]
[421443045,1777659137000,-150.0,0.00011356,2]
[421443027,1777659137000,-209.40437684,0.00011285,2]
[421443025,1777659137000,-150.0,0.00011283,2]
[421443029,1777659137000,-150.0,0.00011307,2]
[421443024,1777659137000,-24214.07,0.00011281,2]
[421443017,1777659137000,-150.0,0.00011174,2]
[421443020,1777659137000,-150.0,0.00011203,2]
[421443021,1777659137000,-150.0,0.00011211,2]
[421443019,1777659137000,-2106.15,0.0001119,2]
[421443026,1777659137000,-578.20924308,0.00011285,2]
[421443022,1777659137000,-150.0,0.00011247,2]
[421443031,1777659137000,-250.092,0.0001131,2]
[421443037,1777659137000,-150.0,0.0001131,2]
[421443034,1777659137000,-150.0,0.0001131,2]
[421443032,1777659137000,-150.0,0.0001131,2]
[421443033,1777659137000,-150.0,0.0001131,2]
[421443035,1777659137000,-194.093,0.0001131,2]
[421443018,1777659137000,-150.0,0.00011174,2]
[421443038,1777659137000,-150.0,0.0001131,2]
[421443039,1777659137000,-623.0,0.0001131,2]
[421443042,1777659137000,-1049.0,0.0001131,2]
[421443036,1777659137000,-150.0,0.0001131,2]
[421443043,1777659137000,-1344.0,0.00011318,2]
[421443040,1777659137000,-3533.0,0.0001131,2]
[421443041,1777659137000,-1350.0,0.0001131,2]
[421443044,1777659137000,-150.0,0.0001132,2]
[421443030,1777659137000,-150.0,0.0001131,2]
[421443016,1777659137000,-700.325612,0.00011172,2]
[421443012,1777659137000,-150.0,0.00011102,2]
[421443013,1777659137000,-150.0,0.00011117,2]
[421442989,1777659137000,-150.0,0.00010812,2]
[421442987,1777659137000,-150.0,0.00010775,2]
[421442988,1777659137000,-150.0,0.00010775,2]
[421442991,1777659137000,-150.0,0.00010861,2]
[421442990,1777659137000,-150.0,0.00010848,2]
[421442992,1777659137000,-2250.65812901,0.00010875,2]
[421442993,1777659137000,-150.0,0.00010884,2]
[421442995,1777659137000,-150.0,0.0001092,2]
[421442994,1777659137000,-150.0,0.00010908,2]
[421442997,1777659137000,-1220.0,0.00010941,2]
[421442996,1777659137000,-2106.15,0.00010929,2]
[421442999,1777659137000,-150.0,0.00010957,2]
[421443009,1777659137000,-420.195366,0.00011084,2]
[421442998,1777659137000,-150.0,0.00010946,2]
[421443001,1777659137000,-150.0,0.00010959,2]
[421443000,1777659137000,-500.0,0.00010959,2]
[421443004,1777659137000,-150.0,0.00011029,2]
[421443003,1777659137000,-150.0,0.00010993,2]
[421443005,1777659137000,-150.0,0.00011032,2]
[421443007,1777659137000,-150.0,0.00011066,2]
[421443006,1777659137000,-150.0,0.00011041,2]
[421443008,1777659137000,-150.0,0.00011075,2]
[421443010,1777659137000,-6998.048461,0.00011084,2]
[421443014,1777659137000,-866.87706094,0.00011121,2]
[421443015,1777659137000,-150.0,0.00011138,2]
[421443011,1777659137000,-1228.64860556,0.00011099,2]
[421443002,1777659137000,-1213.0,0.00010986,2]
[421443046,1777659137000,-150.0,0.00011374,2]
[421443028,1777659137000,-150.0,0.00011288,2]
[421443048,1777659137000,-150.0,0.00011392,2]
[421443077,1777659137000,-1016.25262418,0.0001176,2]
[421443078,1777659137000,-150.0,0.00011791,2]
[421443082,1777659137000,-150.0,0.0001184,2]
[421443083,1777659137000,-150.0,0.00011864,2]
[421443085,1777659137000,-2000.0,0.0001188,2]
[421443086,1777659137000,-150.0,0.00011887,2]
[421443084,1777659137000,-10000.0,0.0001188,2]
[421443087,1777659137000,-250.0,0.0001189,2]
[421443088,1777659137000,-250.0,0.0001189,2]
[421443089,1777659137000,-2317.5101398,0.000119,2]
[421443091,1777659137000,-156.0,0.000119,5]
[421443092,1777659137000,-150.0,0.000119,2]
[421443094,1777659137000,-150.0,0.00011936,2]
[421443093,1777659137000,-200.0,0.00011904,2]
[421443090,1777659137000,-181.78966105,0.000119,2]
[421443095,1777659137000,-502.86553041,0.00011973,2]
[421443096,1777659137000,-165.27848887,0.00011973,2]
[421443098,1777659137000,-150.0,0.00011973,2]
[421443100,1777659137000,-2000.0,0.0001198,2]
[421443099,1777659137000,-224.05607549,0.00011973,2]
[421443105,1777659137000,-3771.71520811,0.00011986,2]
[421443102,1777659137000,-50344.1128444,0.00011986,2]
[421443103,1777659137000,-9931.010693,0.00011986,2]
[421443104,1777659137000,-3072.7541231,0.00011986,2]
[421443101,1777659137000,-17886.9769835,0.00011986,2]
[421443107,1777659137000,-6079.08913418,0.00011986,2]
[421443047,1777659137000,-150.0,0.00011374,2]
[421443079,1777659137000,-150.0,0.00011802,2]
[421443081,1777659137000,-194.72792767,0.00011833,2]
[421443097,1777659137000,-247.99859753,0.00011973,2]
[421443080,1777659137000,-150.0,0.00011827,2]
[421443049,1777659137000,-4403.365,0.000114,2]
[421443051,1777659137000,-150.0,0.00011428,2]
[421443053,1777659137000,-2106.15,0.0001145,2]
[421443052,1777659137000,-150.0,0.0001144,2]
[421443054,1777659137000,-500.0,0.00011452,2]
[421443055,1777659137000,-500.0,0.00011452,2]
[421443056,1777659137000,-501.76596491,0.00011452,2]
[421443058,1777659137000,-150.0,0.00011459,2]
[421443060,1777659137000,-2000.0,0.00011468,2]
[421443057,1777659137000,-504.72275665,0.00011452,2]
[421443050,1777659137000,-328.517,0.000114,2]
[421443059,1777659137000,-150.0,0.00011465,2]
[421443063,1777659137000,-150.0,0.00011545,2]
[421443061,1777659137000,-150.0,0.00011501,2]
[421443062,1777659137000,-150.0,0.00011537,2]
[421443076,1777659137000,-150.0,0.00011755,2]
[421443073,1777659137000,-150.0,0.00011707,2]
[421443074,1777659137000,-150.0,0.00011716,2]
[421443072,1777659137000,-150.0,0.00011682,2]
[421443064,1777659137000,-150.0,0.00011574,2]
[421443071,1777659137000,-150.0,0.00011673,2]
[421443070,1777659137000,-150.0,0.00011646,2]
[421443066,1777659137000,-433.0,0.00011588,2]
[421443069,1777659137000,-700.0,0.00011638,2]
[421443106,1777659137000,-810.738422,0.00011986,2]
[421443067,1777659137000,-150.0,0.0001161,2]
[421443065,1777659137000,-150.0,0.00011574,2]
[421443068,1777659137000,-150.0,0.00011631,2]
[421443075,1777659137000,-150.0,0.00011719,2]
[421443111,1777659138000,-151.0,0.0001199,2]
[421443108,1777659138000,-22413.61267806,0.00011986,2]
[421443109,1777659138000,-26825.04391505,0.00011986,2]
[421443110,1777659138000,-1643.9004652,0.00011986,2]
[421443113,1777659138000,-151.0,0.00011997,2]
[421443112,1777659138000,-161.0,0.0001199,2]
[421443115,1777659138000,-976542.60360337,0.00012,2]
[421443116,1777659138000,-15427.67030978,0.00012,2]
[421443114,1777659138000,-666.0,0.00011999,2]
[421443117,1777659512000,171.57,5.264e-05,2]
[421443118,1777659513000,171.57,5.541e-05,2]
[421443120,1777659514000,171.57,6.095e-05,2]
[421443121,1777659514000,171.57,6.372e-05,2]
[421443119,1777659514000,171.57,5.818e-05,2]
[421443123,1777659514000,171.57,6.926e-05,2]
[421443124,1777659514000,171.57,7.203e-05,2]
[421443125,1777659514000,171.57,7.48e-05,2]
[421443122,1777659514000,171.57,6.649e-05,2]
[421443127,1777659515000,171.57,8.034e-05,2]
[421443126,1777659515000,171.57,7.757e-05,2]
[421443128,1777659516000,171.57,8.311e-05,2]
[421443144,1777659946000,-171.57,8.865e-05,2]
[421443150,1777659946000,-2000.0,8.914e-05,2]
[421443148,1777659946000,-4288.56,8.914e-05,2]
[421443147,1777659946000,-1200.0,8.913e-05,2]
[421443146,1777659946000,-300.0,8.913e-05,2]
[421443149,1777659946000,-900.4,8.914e-05,2]
[421443145,1777659946000,-718.91900877,8.885e-05,2]
[421443137,1777659946000,-4700.0,8.546e-05,2]
[421443143,1777659946000,-250.0,8.657e-05,2]
[421443140,1777659946000,-250.0,8.555e-05,2]
[421443141,1777659946000,-171.57,8.588e-05,2]
[421443138,1777659946000,-472.51437042,8.549e-05,2]
[421443139,1777659946000,-160.70417944,8.549e-05,2]
[421443136,1777659946000,-500.0,8.527e-05,2]
[421443135,1777659946000,-1630.09,8.507e-05,2]
[421443142,1777659946000,-500.0,8.648e-05,2]
[421443151,1777659946000,-2000.0,9.047e-05,2]
[421443159,1777659946000,-250.0,9.398e-05,2]
[421443152,1777659946000,-1117.0,9.085e-05,2]
[421443154,1777659946000,-150.0,9.227e-05,2]
[421443170,1777659946000,-2557.91842062,9.477e-05,2]
[421443169,1777659946000,-150.0,9.476e-05,2]
[421443168,1777659946000,-151.0,9.475e-05,2]
[421443166,1777659946000,-151.0,9.475e-05,2]
[421443165,1777659946000,-151.0,9.475e-05,2]
[421443164,1777659946000,-171.57,9.419e-05,2]
[421443163,1777659946000,-300.0,9.398e-05,2]
[421443167,1777659946000,-151.0,9.475e-05,2]
[421443160,1777659946000,-300.0,9.398e-05,2]
[421443161,1777659946000,-500.0,9.398e-05,2]
[421443157,1777659946000,-300.0,9.358e-05,2]
[421443158,1777659946000,-2500.0,9.378e-05,2]
[421443156,1777659946000,-500.0,9.358e-05,2]
[421443153,1777659946000,-171.57,9.142e-05,2]
[421443155,1777659946000,-337.29438253,9.348e-05,2]
[421443162,1777659946000,-5000.0,9.398e-05,2]
[421443171,1777659967000,152.0,9.266e-05,7]
[421443172,1777659968000,152.0,9.48e-05,7]
[421443173,1777660017000,-737.44348164,8.444e-05,2]
[421443174,1777660032000,-386.474881,8.444e-05,2]
[421443175,1777660053000,-365.44143736,8.444e-05,2]
[421443177,1777660053000,-150.0,9.476e-05,2]
[421443178,1777660053000,-1562.07057938,9.477e-05,2]
[421443179,1777660053000,-302.42,9.477e-05,2]
[421443180,1777660053000,-194.72818647,9.477e-05,2]
[421443181,1777660053000,-500.0,9.477e-05,2]
[421443182,1777660053000,-500.0,9.477e-05,2]
[421443183,1777660053000,-469.5821589,9.477e-05,2]
[421443184,1777660053000,-500.0,9.477e-05,2]
[421443185,1777660053000,-177.08461791,9.477e-05,2]
[421443176,1777660053000,-2500.0,9.378e-05,2]
[421443187,1777660053000,-500.0,9.477e-05,2]
[421443186,1777660053000,-500.0,9.477e-05,2]
[421443195,1777660053000,-184.04287589,9.477e-05,2]
[421443194,1777660053000,-500.0,9.477e-05,2]
[421443192,1777660053000,-500.0,9.477e-05,2]
[421443196,1777660053000,-72282.33115034,9.478e-05,2]
[421443191,1777660053000,-500.0,9.477e-05,2]
[421443190,1777660053000,-500.0,9.477e-05,2]
[421443189,1777660053000,-566.7573834,9.477e-05,2]
[421443188,1777660053000,-500.0,9.477e-05,2]
[421443193,1777660053000,-500.0,9.477e-05,2]
[421443231,1777660232000,-171.57,9.696e-05,2]
[421443227,1777660232000,-59987.72466602,9.484e-05,2]
[421443230,1777660232000,-15674.9,9.67e-05,2]
[421443222,1777660232000,-181776.55291537,9.478e-05,2]
[421443224,1777660232000,-2259.5145,9.479e-05,2]
[421443228,1777660232000,-956.25807576,9.564e-05,2]
[421443226,1777660232000,-395.71685379,9.484e-05,2]
[421443232,1777660232000,-171.57,9.973e-05,2]
[421443238,1777660232000,-500.0,0.0001,2]
[421443237,1777660232000,-151.0,0.0001,2]
[421443236,1777660232000,-731.91267106,0.0001,2]
[421443235,1777660232000,-535.02944098,0.0001,2]
[421443225,1777660232000,-207.2677,9.479e-05,2]
[421443241,1777660232000,-151.0,0.0001,2]
[421443244,1777660232000,-151.0,0.0001,2]
[421443239,1777660232000,-151.0,0.0001,2]
[421443242,1777660232000,-151.0,0.0001,2]
[421443229,1777660232000,-260.16482673,9.663e-05,2]
[421443234,1777660232000,-1793.73661856,0.0001,2]
[421443218,1777660232000,-500.0,9.477e-05,2]
[421443223,1777660232000,-44359.56163429,9.478e-05,2]
[421443204,1777660232000,-2710.3439146,9.324e-05,2]
[421443203,1777660232000,-1852.42,8.914e-05,2]
[421443206,1777660232000,-300.0,9.377e-05,2]
[421443209,1777660232000,-1051.54508863,9.378e-05,2]
[421443205,1777660232000,-1200.0,9.377e-05,2]
[421443208,1777660232000,-1329.23608541,9.378e-05,2]
[421443207,1777660232000,-150.0,9.377e-05,2]
[421443212,1777660232000,-3213.21263462,9.378e-05,2]
[421443233,1777660232000,-719.43042459,0.0001,2]
[421443210,1777660232000,-119.21882596,9.378e-05,2]
[421443213,1777660232000,-254796.6464366,9.378e-05,2]
[421443215,1777660232000,-500.0,9.477e-05,2]
[421443219,1777660232000,-646.73016839,9.477e-05,2]
[421443214,1777660232000,-187.1158751,9.477e-05,2]
[421443220,1777660232000,-500.0,9.477e-05,2]
[421443221,1777660232000,-378.70751123,9.477e-05,2]
[421443216,1777660232000,-500.0,9.477e-05,2]
[421443217,1777660232000,-500.0,9.477e-05,2]
[421443211,1777660232000,-792.50822878,9.378e-05,2]
[421443246,1777660232000,-151.0,0.0001,2]
[421443240,1777660232000,-500.0,0.0001,2]
[421443245,1777660232000,-151.0,0.0001,2]
[421443279,1777660232000,-150.0,0.00011067,2]
[421443274,1777660232000,-166.66,0.00010937,2]
[421443273,1777660232000,-150.0,0.00010933,2]
[421443272,1777660232000,-150.0,0.000108,2]
[421443270,1777660232000,-150.0,0.000108,2]
[421443275,1777660232000,-150.0,0.00010959,2]
[421443276,1777660232000,-150.0,0.00010959,2]
[421443277,1777660232000,-150.0,0.00010989,2]
[421443271,1777660232000,-150.0,0.000108,2]
[421443278,1777660232000,-2925.77574633,0.00011,2]
[421443286,1777660232000,-4087.82,0.00011281,2]
[421443280,1777660232000,-1117.0,0.00011099,2]
[421443282,1777660232000,-150.0,0.000112,2]
[421443284,1777660232000,-9999.99,0.00011281,2]
[421443287,1777660232000,-24999.99,0.00011281,2]
[421443289,1777660232000,-578.20924308,0.00011285,2]
[421443288,1777660232000,-7548.79,0.00011281,2]
[421443243,1777660232000,-151.0,0.0001,2]
[421443281,1777660232000,-40259.66,0.00011134,2]
[421443268,1777660232000,-150.00000001,0.000108,2]
[421443269,1777660232000,-150.0,0.000108,2]
[421443257,1777660232000,-171.57,0.0001025,2]
[421443251,1777660232000,-1117.0,0.00010067,2]
[421443254,1777660232000,-1062.4,0.00010156,2]
[421443249,1777660232000,-151.0,0.0001,2]
[421443252,1777660232000,-1000.0,0.00010103,2]
[421443256,1777660232000,-500.0,0.00010182,2]
[421443248,1777660232000,-151.0,0.0001,2]
[421443253,1777660232000,-194.01,0.00010103,2]
[421443266,1777660232000,-1117.0,0.0001057,2]
[421443247,1777660232000,-151.0,0.0001,2]
[421443250,1777660232000,-22725.39816583,0.0001,2]
[421443261,1777660232000,-255.0,0.00010314,2]
[421443262,1777660232000,-157.47,0.00010411,2]
[421443260,1777660232000,-1680.0,0.00010314,2]
[421443259,1777660232000,-420.0,0.00010314,2]
[421443263,1777660232000,-250.0,0.00010425,2]
[421443267,1777660232000,-166.66,0.00010587,2]
[421443264,1777660232000,-171.57,0.00010527,2]
[421443265,1777660232000,-2416.7572092,0.00010544,2]
[421443258,1777660232000,-200.0,0.00010272,2]
[421443255,1777660232000,-2000.0,0.00010177,2]
[421443292,1777660233000,-721.12765535,0.00011285,2]
[421443291,1777660233000,-1428.38747117,0.00011285,2]
[421443294,1777660233000,-1254.41808677,0.00011285,2]
[421443290,1777660233000,-209.40437684,0.00011285,2]
[421443293,1777660233000,-4220.16187789,0.00011285,2]
[421443328,1777660238000,-1000.0,0.00011722,2]
[421443314,1777660238000,-433.0,0.00011346,2]
[421443316,1777660238000,-1062.4,0.00011426,2]
[421443317,1777660238000,-151.0,0.0001145,2]
[421443318,1777660238000,-150.0,0.00011467,2]
[421443322,1777660238000,-151.0,0.0001156,2]
[421443321,1777660238000,-350.0,0.00011532,2]
[421443320,1777660238000,-500.0,0.00011507,2]
[421443319,1777660238000,-151.0,0.00011505,2]
[421443315,1777660238000,-151.0,0.00011395,2]
[421443324,1777660238000,-151.0,0.00011615,2]
[421443333,1777660238000,-151.0,0.0001178,2]
[421443323,1777660238000,-150.0,0.000116,2]
[421443326,1777660238000,-151.0,0.0001167,2]
[421443325,1777660238000,-166.66,0.00011636,2]
[421443334,1777660238000,-1000.0,0.00011832,2]
[421443330,1777660238000,-150.0,0.00011733,2]
[421443312,1777660238000,-587.0,0.00011346,2]
[421443313,1777660238000,-2351.0,0.00011346,2]
[421443306,1777660238000,-1267.0,0.0001131,2]
[421443329,1777660238000,-151.0,0.00011725,2]
[421443296,1777660238000,-313.16865801,0.00011285,2]
[421443295,1777660238000,-3152.87553292,0.00011285,2]
[421443297,1777660238000,-743.50770149,0.00011285,2]
[421443299,1777660238000,-209.40437684,0.00011285,2]
[421443308,1777660238000,-1664.0,0.0001131,2]
[421443309,1777660238000,-623.0,0.0001131,2]
[421443311,1777660238000,-151.0,0.0001134,2]
[421443310,1777660238000,-150.0,0.00011333,2]
[421443303,1777660238000,-166.66,0.00011286,2]
[421443301,1777660238000,-174.61919141,0.00011285,2]
[421443305,1777660238000,-1109.72096714,0.00011308,2]
[421443307,1777660238000,-1220.0,0.0001131,2]
[421443300,1777660238000,-151.56277928,0.00011285,2]
[421443302,1777660238000,-279.9045709,0.00011285,2]
[421443304,1777660238000,-890.27903286,0.00011308,2]
[421443298,1777660238000,-151.0,0.00011285,2]
[421443327,1777660238000,-1000.0,0.0001172,2]
[421443339,1777660238000,-359.12660286,0.00011833,2]
[421443331,1777660238000,-1000.0,0.0001175,2]
[421443363,1777660238000,-181.78966104,0.000119,2]
[421443360,1777660238000,-2428.36752368,0.000119,2]
[421443367,1777660238000,-1000.0,0.00011915,2]
[421443369,1777660238000,-1000.0,0.00011922,2]
[421443379,1777660238000,-23188.84652279,0.0001196,2]
[421443373,1777660238000,-250.0,0.00011934,2]
[421443375,1777660238000,-250.0,0.00011934,2]
[421443383,1777660238000,-741.54098972,0.0001196,2]
[421443385,1777660238000,-5753.47089063,0.0001196,2]
[421443377,1777660238000,-1000.0,0.00011945,2]
[421443371,1777660238000,-1000.0,0.00011928,2]
[421443390,1777660238000,-3343.4624783,0.0001196,2]
[421443388,1777660238000,-18349.55742196,0.0001196,2]
[421443392,1777660238000,-4481.3306444,0.0001196,2]
[421443397,1777660238000,-2046.66161675,0.0001196,2]
[421443332,1777660238000,-2732.50634091,0.0001176,2]
[421443399,1777660238000,-10793.927085,0.0001196,2]
[421443365,1777660238000,-200.0,0.00011904,2]
[421443358,1777660238000,-3400.84892042,0.000119,2]
[421443394,1777660238000,-10416.17536915,0.0001196,2]
[421443352,1777660238000,-3731.88730504,0.000119,2]
[421443335,1777660238000,-1481.23780761,0.00011833,2]
[421443337,1777660238000,-217.15233878,0.00011833,2]
[421443346,1777660238000,-1000.0,0.00011874,2]
[421443336,1777660238000,-771.01748645,0.00011833,2]
[421443343,1777660238000,-1000.0,0.0001184,2]
[421443340,1777660238000,-151.0,0.00011835,2]
[421443338,1777660238000,-181.08010149,0.00011833,2]
[421443342,1777660238000,-1000.0,0.00011839,2]
[421443341,1777660238000,-1000.0,0.00011836,2]
[421443345,1777660238000,-150.0,0.00011867,2]
[421443349,1777660238000,-838.6075392,0.00011899,2]
[421443356,1777660238000,-3384.07615536,0.000119,2]
[421443350,1777660238000,-1340.59588096,0.000119,2]
[421443355,1777660238000,-3069.81053589,0.000119,2]
[421443347,1777660238000,-1000.0,0.00011885,2]
[421443344,1777660238000,-1000.0,0.00011851,2]
[421443348,1777660238000,-1000.0,0.00011885,2]
[421443418,1777660239000,-224.01888329,0.00011997,2]
[421443403,1777660239000,-400.0,0.0001197,2]
[421443401,1777660239000,-1000.0,0.0001197,2]
[421443405,1777660239000,-700.0,0.0001197,2]
[421443414,1777660239000,-166.66,0.00011985,2]
[421443409,1777660239000,-502.19224822,0.00011973,2]
[421443416,1777660239000,-161.0,0.0001199,2]
[421443407,1777660239000,-500.0,0.00011973,2]
[421443420,1777660239000,-32499.02449641,0.00012,2]
[421443425,1777660239000,-380.52932165,0.00012,2]
[421443426,1777660239000,-640.14698549,0.00012,2]
[421443427,1777660239000,-1224.8656541,0.00012,2]
[421443429,1777660239000,-330092.73796825,0.00012,2]
[421443431,1777660239000,-452709.94188607,0.00012,2]
[421443435,1777660239000,-17003.35831651,0.00012,2]
[421443433,1777660239000,-308.01,0.00012,2]
[421443437,1777660239000,-361.71069867,0.00012,2]
[421443422,1777660239000,-829.67010334,0.00012,2]
[421443633,1777660240000,-151.0,0.00012,2]
[421443645,1777660240000,-1534.0,0.00012,2]
[421443638,1777660240000,-241.26935684,0.00012,2]
[421443648,1777660240000,-150.0,0.00012,2]
[421443643,1777660240000,-151.0,0.00012,2]
[421443631,1777660240000,-1534.0,0.00012,2]
[421443636,1777660240000,-151.0,0.00012,2]